{"text_format":"1","workbook":"xlsx","n_sheets":3,"sheets":["Names","lists","ورقة1"],"not_rendered":{"charts":0,"images":0,"macros":1,"external_links":0,"defined_names":4,"comments":0,"pivot_tables":0},"unopened":[],"bounds":{"document_bytes":16777216,"sheet_cells":100000,"rows_first":2000,"rows_last":500,"rows_between":2000,"halvings":0,"cell_chars":16384,"cell_head_chars":4096},"cells_cut":0,"cells_raw":0,"read":"whole","date_system":"1900"}

{"sheet":"Names","index":0,"n_rows":6,"n_cols":48,"rows_kept":6,"cut":false,"hidden":false,"merged":[[0,22,2,22],[0,0,2,0],[0,2,2,2],[0,4,2,4],[0,6,2,6],[0,8,2,8],[0,10,2,10],[0,12,2,12],[0,14,2,14],[0,16,2,16],[0,18,2,18],[0,20,2,20],[0,46,2,46],[0,24,2,24],[0,26,2,26],[0,28,2,28],[0,30,2,30],[0,32,2,32],[0,34,2,34],[0,36,2,36],[0,38,2,38],[0,40,2,40],[0,42,2,42],[0,44,2,44]]}
["الرقم","العاشر أ","الرقم","العاشر ب","الرقم","العاشر ج","الرقم","العاشر د","الرقم","الحادي عشر العلمي أ","الرقم","الحادي عشر العلمي ب","الرقم","الحادي عشر العلمي ج","الرقم","الحادي عشر العلمي د","الرقم","الحادي عشر الادبي أ","الرقم","الحادي عشر الادبي ب","الرقم","الحادي عشر الادبي ج","الرقم","الحادي عشر الادبي د","الرقم","الحادي عشر الادبي هـ","الرقم","الحادي عشر الادبي و","الرقم","الثاني عشر العلمي ا","الرقم","الثاني عشر العلمي ب","الرقم","الثاني عشر العلمي ج","الرقم","الثاني عشر الادبي أ","الرقم","الثاني عشر الادبي ب","الرقم","الثاني عشر الادبي ج","الرقم","الثاني عشر الادبي د ","الرقم","الثاني عشر الادبي هـ","الرقم","الثاني عشر الادبي و","الرقم","الثاني عشر الادبي ز"]
[null,"عدد طلاب الشعبة ",null,"عدد طلاب الشعبة ",null,"عدد طلاب الشعبة ",null,"عدد طلاب الشعبة ",null,"عدد طلاب الشعبة ",null,"عدد طلاب الشعبة ",null,"عدد طلاب الشعبة ",null,"عدد طلاب الشعبة ",null,"عدد طلاب الشعبة ",null,"عدد طلاب الشعبة ",null,"عدد طلاب الشعبة ",null,"عدد طلاب الشعبة ",null,"عدد طلاب الشعبة ",null,"عدد طلاب الشعبة ",null,"عدد طلاب الشعبة ",null,"عدد طلاب الشعبة ",null,"عدد طلاب الشعبة ",null,"عدد طلاب الشعبة ",null,"عدد طلاب الشعبة ",null,"عدد طلاب الشعبة ",null,"عدد طلاب الشعبة ",null,"عدد طلاب الشعبة ",null,"عدد طلاب الشعبة ",null,"عدد طلاب الشعبة "]
[null,{"$f":"COUNTA(B4:B68)","v":3},null,{"$f":"COUNTA(D4:D68)","v":1},null,{"$f":"COUNTA(F4:F68)","v":0},null,{"$f":"COUNTA(H4:H68)","v":0},null,{"$f":"COUNTA(J4:J218)","v":0},null,{"$f":"COUNTA(L4:L68)","v":0},null,{"$f":"COUNTA(N4:N68)","v":0},null,{"$f":"COUNTA(P4:P218)","v":0},null,{"$f":"COUNTA(R4:R218)","v":0},null,{"$f":"COUNTA(T4:T68)","v":0},null,{"$f":"COUNTA(V4:V99)","v":0},null,{"$f":"COUNTA(X4:X68)","v":0},null,{"$f":"COUNTA(Z4:Z68)","v":0},null,{"$f":"COUNTA(AB4:AB68)","v":0},null,{"$f":"COUNTA(AD4:AD68)","v":0},null,{"$f":"COUNTA(AF4:AF68)","v":0},null,{"$f":"COUNTA(AH4:AH68)","v":0},null,{"$f":"COUNTA(AJ4:AJ68)","v":0},null,{"$f":"COUNTA(AL4:AL68)","v":0},null,{"$f":"COUNTA(AN4:AN68)","v":0},null,{"$f":"COUNTA(AP4:AP68)","v":0},null,{"$f":"COUNTA(AR4:AR68)","v":0},null,{"$f":"COUNTA(AT4:AT68)","v":0},null,{"$f":"COUNTA(AV4:AV68)","v":0}]
[null,"خالد"]
[null,"سيد",null,"سيد"]
[null,"محمد"]

{"sheet":"lists","index":1,"n_rows":29,"n_cols":6,"rows_kept":29,"cut":false,"hidden":false,"merged":[[1,6,3,6],[0,0,0,5],[1,2,1,3],[1,0,1,1],[2,0,2,1],[2,2,2,3],[1,4,1,5],[2,4,2,5]]}
[]
[" اســــــــــم مربــــــي الصــــــف :",null,{"$f":"IFERROR(VLOOKUP(E3,class,2,FALSE),\"\")","v":0},null,{"$f":"\" الصف:  \"&G1","v":" الصف:  "}]
["عــــــدد طلاب الشعبـــــــــــــــة :",null,{"$f":"COUNTA(B5:B29,D5:D29,F5:F25)","v":0},null,"الحادي عشر العلمي ج"]
["رقم","الاسم","رقم","الاسم","رقم","الاسم"]
[1,null,26,null,51]
[2,null,27,null,52]
[3,null,28,null,53]
[4,null,29,null,54]
[5,null,30,null,55]
[6,null,31,null,56]
[7,null,32,null,57]
[8,null,33,null,58]
[9,null,34,null,59]
[10,null,35,null,60]
[11,null,36,null,61]
[12,null,37,null,62]
[13,null,38,null,63]
[14,null,39,null,64]
[15,null,40,null,65]
[16,null,41,null,66]
[17,null,42,null,67]
[18,null,43,null,68]
[19,null,44,null,69]
[20,null,45,null,70]
[21,null,46,null,71]
[22,null,47,null,72]
[23,null,48,null,73]
[24,null,49,null,74]
[25,null,50,null,75]

{"sheet":"ورقة1","index":2,"n_rows":24,"n_cols":1,"rows_kept":24,"cut":false,"hidden":true,"merged":[]}
["العاشر أ"]
["العاشر ب"]
["العاشر ج"]
["العاشر د"]
["الحادي عشر العلمي أ"]
["الحادي عشر العلمي ب"]
["الحادي عشر العلمي ج"]
["الحادي عشر العلمي د"]
["الحادي عشر الادبي أ"]
["الحادي عشر الادبي ب"]
["الحادي عشر الادبي ج"]
["الحادي عشر الادبي د"]
["الحادي عشر الادبي هـ"]
["الحادي عشر الادبي و"]
["الثاني عشر الادبي أ"]
["الثاني عشر الادبي ب"]
["الثاني عشر الادبي ج"]
["الثاني عشر الادبي د "]
["الثاني عشر الادبي ز"]
["الثاني عشر الادبي هـ"]
["الثاني عشر الادبي و"]
["الثاني عشر العلمي ا"]
["الثاني عشر العلمي ب"]
["الثاني عشر العلمي ج"]